fUSD/lending_fUSD_20250524
["ID","MTS","AMOUNT","RATE_DAILY","PERIOD"]
[362243681,1748117460020,-665.35,0.00019342,2]
[362243682,1748117460030,-420.0,0.00019342,2]
[362243683,1748117460039,-3833.23,0.00019342,2]
[362243684,1748117460048,-420.0,0.00019342,2]
[362243685,1748117460058,-420.0,0.00019342,2]
[362243686,1748117460067,-508.45,0.00019342,2]
[362243687,1748117460077,-5208.31,0.00019342,2]
[362243688,1748117460086,-420.0,0.00019342,2]
[362243689,1748117460095,-420.0,0.00019342,2]
[362243690,1748117460104,-980.30627403,0.00019351,2]
[362243691,1748117460113,-534.18582381,0.00019369,2]
[362243692,1748117460122,-385.8596092,0.00019369,2]
[362243693,1748117460131,-152.464525,0.00019369,2]
[362243694,1748117460139,-366.71010451,0.00019369,2]
[362243695,1748117460149,-420.0,0.00019369,2]
[362243696,1748117460158,-1385.27,0.00019369,2]
[362243697,1748117460167,-908.32,0.00019369,2]
[362243698,1748117460176,-985.75,0.00019369,2]
[362243699,1748117460186,-284.29636169,0.00019369,2]
[362243700,1748117460194,-618.23,0.00019369,2]
[362243701,1748117460203,-420.0,0.00019369,2]
[362243702,1748117460213,-849.67,0.00019369,2]
[362243703,1748117460222,-420.0,0.00019369,2]
[362243704,1748117460231,-420.0,0.00019369,2]
[362243705,1748117460240,-1157.53,0.00019369,2]
[362243706,1748117460250,-886.04,0.00019369,2]
[362243707,1748117460258,-420.0,0.00019369,2]
[362243708,1748117460268,-420.0,0.00019369,2]
[362243709,1748117460278,-420.0,0.00019369,2]
[362243710,1748117460287,-420.0,0.00019369,2]
[362243711,1748117460296,-943.28,0.00019369,2]
[362243712,1748117460305,-211.56088381,0.00019369,2]
[362243713,1748117460314,-420.0,0.00019369,2]
[362243714,1748117460323,-420.0,0.00019369,2]
[362243715,1748117460333,-5653.33,0.00019369,2]
[362243716,1748117460343,-529.4,0.00019369,2]
[362243717,1748117460353,-3961.59,0.00019369,2]
[362243718,1748117460364,-1625.46,0.00019369,2]
[362243719,1748117460374,-2212.53,0.00019369,2]
[362243720,1748117460384,-11025.39,0.00019369,2]
[362243721,1748117460393,-420.0,0.00019369,2]
[362243722,1748117460403,-318.91149756,0.00019369,2]
[362243723,1748117460412,-1103.27,0.00019369,2]
[362243724,1748117460422,-915.43,0.00019369,2]
[362243725,1748117460432,-458.48,0.00019369,2]
[362243726,1748117460442,-1622.93,0.00019369,2]
[362243727,1748117460452,-303.21222319,0.00019369,2]
[362243728,1748117460461,-139411.7,0.00019369,2]
[362243729,1748117460471,-5710.99,0.00019369,2]
[362243730,1748117460480,-2122.1,0.00019369,2]
[362243731,1748117460490,-506.07,0.00019369,2]
[362243732,1748117460499,-599.9,0.00019369,2]
[362243733,1748117460509,-2039.49,0.00019369,2]
[362243734,1748117460518,-420.0,0.00019369,2]
[362243735,1748117460528,-1336.66,0.00019369,2]
[362243736,1748117460538,-420.0,0.00019369,2]
[362243737,1748117460547,-2331.45,0.00019369,2]
[362243738,1748117460557,-420.0,0.00019369,2]
[362243739,1748117460566,-420.0,0.00019369,2]
[362243740,1748117460575,-2331.48,0.00019369,2]
[362243741,1748117460585,-420.0,0.00019369,2]
[362243742,1748117460594,-420.0,0.00019369,2]
[362243743,1748117460604,-1010.17,0.00019369,2]
[362243744,1748117460613,-476.38,0.00019369,2]
[362243745,1748117460623,-420.0,0.00019369,2]
[362243746,1748117460632,-420.0,0.00019369,2]
[362243747,1748117460642,-2012.08,0.00019369,2]
[362243748,1748117460651,-420.0,0.00019369,2]
[362243749,1748117460661,-6143.93,0.00019369,2]
[362243750,1748117460671,-419.21153276,0.00019369,2]
[362243751,1748117460680,-420.0,0.00019369,2]
[362243752,1748117460690,-4396.86,0.00019369,2]
[362243753,1748117460699,-151.0,0.00019369,2]
[362243754,1748117460709,-420.0,0.00019369,2]
[362243755,1748117460719,-4230.85,0.00019369,2]
[362243756,1748117460729,-7374.08,0.00019369,2]
[362243757,1748117460738,-443.68,0.00019369,2]
[362243758,1748117460747,-420.0,0.00019369,2]
[362243759,1748117460756,-151.0,0.00019369,2]
[362243760,1748117460766,-420.0,0.00019369,2]
[362243761,1748117460776,-151.0,0.00019369,2]
[362243762,1748117460786,-151.0,0.00019369,2]
[362243763,1748117460796,-1352.04,0.00019369,2]
[362243764,1748117460806,-151.0,0.00019369,2]
[362243765,1748117460815,-151.0,0.00019369,2]
[362243766,1748117460824,-420.0,0.00019369,2]
[362243767,1748117460834,-420.0,0.00019369,2]
[362243768,1748117460843,-420.0,0.00019369,2]
[362243769,1748117460852,-420.0,0.00019369,2]
[362243770,1748117460866,-151.0,0.00019369,2]
[362243771,1748117460876,-352.44190781,0.00019369,2]
[362243772,1748117460885,-189.947256,0.00019369,2]
[362243773,1748117460895,-490.63617688,0.00019369,2]
[362243774,1748117460905,-215.105622,0.00019369,2]
[362243775,1748117460915,-2498.63,0.00019369,2]
[362243776,1748117460924,-713.21,0.00019369,2]
[362243777,1748117460934,-215.105622,0.00019369,2]
[362243778,1748117460943,-665.35,0.00019369,2]
[362243779,1748117460954,-420.0,0.00019369,2]
[362243780,1748117460964,-807.50637,0.00019369,2]
[362243781,1748117460975,-3833.23,0.00019369,2]
[362243782,1748117460984,-807.50637,0.00019369,2]
[362243783,1748117460994,-151.0,0.00019369,2]
[362243784,1748117461004,-420.0,0.00019369,2]
[362243785,1748117461014,-420.0,0.00019369,2]
[362243786,1748117461023,-508.45,0.00019369,2]
[362243787,1748117461033,-251.410834,0.00019369,2]
[362243788,1748117461042,-5208.31,0.00019369,2]
[362243789,1748117461052,-420.0,0.00019369,2]
[362243790,1748117461062,-420.0,0.00019369,2]
[362243791,1748117461071,-500.0,0.00019373,2]
[362243792,1748117461080,-500.0,0.00019373,2]
[362243793,1748117461089,-500.0,0.00019373,2]
[362243794,1748117461099,-500.0,0.00019373,2]
[362243795,1748117461109,-500.74291645,0.00019373,2]
[362243796,1748117461119,-502.28145813,0.00019373,2]
[362243797,1748117461128,-153.04768091,0.00019373,2]
[362243798,1748117461138,-502.92060005,0.00019373,2]
[362243799,1748117461148,-500.0,0.00019373,2]
[362243800,1748117461158,-152.464525,0.00019397,2]
[362243801,1748117461167,-152.925138,0.00019397,2]
[362243802,1748117461177,-420.0,0.00019397,2]
[362243803,1748117461186,-1385.27,0.00019397,2]
[362243804,1748117461195,-908.32,0.00019397,2]
[362243805,1748117461205,-985.75,0.00019397,2]
[362243806,1748117461214,-618.23,0.00019397,2]
[362243807,1748117461223,-420.0,0.00019397,2]
[362243808,1748117461232,-849.67,0.00019397,2]
[362243809,1748117461241,-420.0,0.00019397,2]
[362243810,1748117461250,-420.0,0.00019397,2]
[362243811,1748117461259,-1157.53,0.00019397,2]
[362243812,1748117461268,-886.04,0.00019397,2]
[362243813,1748117461277,-420.0,0.00019397,2]
[362243814,1748117461286,-151.0,0.00019397,2]
[362243815,1748117461296,-151.0,0.00019397,2]
[362243816,1748117461305,-151.0,0.00019397,2]
[362243817,1748117461314,-420.0,0.00019397,2]
[362243818,1748117461323,-420.0,0.00019397,2]
[362243819,1748117461332,-151.0,0.00019397,2]
[362243820,1748117461341,-151.0,0.00019397,2]
[362243821,1748117461350,-151.0,0.00019397,2]
[362243822,1748117461359,-151.0,0.00019397,2]
[362243823,1748117461368,-227.778088,0.00019397,2]
[362243824,1748117461377,-151.0,0.00019397,2]
[362243825,1748117461386,-248.485787,0.00019397,2]
[362243826,1748117461395,-151.0,0.00019397,2]
[362243827,1748117461404,-420.0,0.00019397,2]
[362243828,1748117461413,-151.0,0.00019397,2]
[362243829,1748117461423,-943.28,0.00019397,2]
[362243830,1748117461432,-420.0,0.00019397,2]
[362243831,1748117461442,-247.30413117,0.00019397,2]
[362243832,1748117461451,-5653.33,0.00019397,2]
[362243833,1748117461461,-529.4,0.00019397,2]
[362243834,1748117461470,-3961.59,0.00019397,2]
[362243835,1748117461479,-1625.46,0.00019397,2]
[362243836,1748117461489,-2212.53,0.00019397,2]
[362243837,1748117461498,-11025.39,0.00019397,2]
[362243838,1748117461508,-163.97112318,0.00019397,2]
[362243839,1748117461517,-1103.27,0.00019397,2]
[362243840,1748117461526,-915.43,0.00019397,2]
[362243841,1748117461536,-458.48,0.00019397,2]
[362243842,1748117461546,-1622.93,0.00019397,2]
[362243843,1748117461555,-139411.7,0.00019397,2]
[362243844,1748117461565,-5710.99,0.00019397,2]
[362243845,1748117461575,-151.0,0.00019397,2]
[362243846,1748117461584,-2122.1,0.00019397,2]
[362243847,1748117461594,-506.07,0.00019397,2]
[362243848,1748117461603,-599.9,0.00019397,2]
[362243849,1748117461613,-151.0,0.00019397,2]
[362243850,1748117461622,-2039.49,0.00019397,2]
[362243851,1748117461631,-420.0,0.00019397,2]
[362243852,1748117461641,-152.766216,0.00019397,2]
[362243853,1748117461651,-1336.66,0.00019397,2]
[362243854,1748117461661,-420.0,0.00019397,2]
[362243855,1748117461670,-2331.45,0.00019397,2]
[362243856,1748117461679,-420.0,0.00019397,2]
[362243857,1748117461689,-420.0,0.00019397,2]
[362243858,1748117461699,-2331.48,0.00019397,2]
[362243859,1748117461709,-420.0,0.00019397,2]
[362243860,1748117461719,-420.0,0.00019397,2]
[362243861,1748117461729,-1010.17,0.00019397,2]
[362243862,1748117461738,-151.0,0.00019397,2]
[362243863,1748117461748,-476.38,0.00019397,2]
[362243864,1748117461758,-420.0,0.00019397,2]
[362243865,1748117461769,-420.0,0.00019397,2]
[362243866,1748117461780,-2012.08,0.00019397,2]
[362243867,1748117461790,-420.0,0.00019397,2]
[362243868,1748117461800,-6143.93,0.00019397,2]
[362243869,1748117461813,-420.0,0.00019397,2]
[362243870,1748117461823,-4396.86,0.00019397,2]
[362243871,1748117461832,-151.0,0.00019397,2]
[362243872,1748117461841,-420.0,0.00019397,2]
[362243873,1748117461850,-4230.85,0.00019397,2]
[362243874,1748117461861,-7374.08,0.00019397,2]
[362243875,1748117461871,-443.68,0.00019397,2]
[362243876,1748117461880,-420.0,0.00019397,2]
[362243877,1748117461890,-420.0,0.00019397,2]
[362243878,1748117461899,-1352.04,0.00019397,2]
[362243879,1748117461908,-420.0,0.00019397,2]
[362243880,1748117461917,-420.0,0.00019397,2]
[362243881,1748117461927,-420.0,0.00019397,2]
[362243882,1748117461937,-420.0,0.00019397,2]
[362243883,1748117461947,-713.21,0.00019397,2]
[362243884,1748117461956,-2498.63,0.00019397,2]
[362243885,1748117461965,-665.35,0.00019397,2]
[362243886,1748117461974,-420.0,0.00019397,2]
[362243887,1748117461984,-3833.23,0.00019397,2]
[362243888,1748117461993,-420.0,0.00019397,2]
[362243889,1748117462002,-508.45,0.00019397,2]
[362243890,1748117462011,-5208.31,0.00019397,2]
[362243891,1748117462021,-420.0,0.00019397,2]
[362243892,1748117462030,-420.0,0.00019397,2]
[362243893,1748117462039,-633.72226864,0.00019406,2]
[362243894,1748117462049,-1385.27,0.00019424,2]
[362243895,1748117462058,-151.0,0.00019424,2]
[362243896,1748117462067,-151.0,0.00019424,2]
[362243897,1748117462076,-908.32,0.00019424,2]
[362243898,1748117462085,-985.75,0.00019424,2]
[362243899,1748117462094,-618.23,0.00019424,2]
[362243900,1748117462104,-420.0,0.00019424,2]
[362243901,1748117462113,-849.67,0.00019424,2]
[362243902,1748117462122,-420.0,0.00019424,2]
[362243903,1748117462131,-151.0,0.00019424,2]
[362243904,1748117462140,-420.0,0.00019424,2]
[362243905,1748117462149,-151.0,0.00019424,2]
[362243906,1748117462158,-1157.53,0.00019424,2]
[362243907,1748117462168,-886.04,0.00019424,2]
[362243908,1748117462177,-560.39565833,0.00019424,2]
[362243909,1748117462186,-420.0,0.00019424,2]
[362243910,1748117462195,-420.0,0.00019424,2]
[362243911,1748117462204,-420.0,0.00019424,2]
[362243912,1748117462213,-943.28,0.00019424,2]
[362243913,1748117462222,-420.0,0.00019424,2]
[362243914,1748117462231,-5653.33,0.00019424,2]
[362243915,1748117462241,-529.4,0.00019424,2]
[362243916,1748117462251,-3961.59,0.00019424,2]
[362243917,1748117462260,-1625.46,0.00019424,2]
[362243918,1748117462269,-151.0,0.00019424,2]
[362243919,1748117462278,-2212.53,0.00019424,2]
[362243920,1748117462288,-11025.39,0.00019424,2]
[362243921,1748117462298,-151.0,0.00019424,2]
[362243922,1748117462307,-151.0,0.00019424,2]
[362243923,1748117462316,-497.422868,0.00019424,2]
[362243924,1748117462325,-497.422868,0.00019424,2]
[362243925,1748117462335,-1103.27,0.00019424,2]
[362243926,1748117462345,-915.43,0.00019424,2]
[362243927,1748117462354,-458.48,0.00019424,2]
[362243928,1748117462363,-151.0,0.00019424,2]
[362243929,1748117462373,-1622.93,0.00019424,2]
[362243930,1748117462382,-263.93542,0.00019424,2]
[362243931,1748117462391,-151.0,0.00019424,2]
[362243932,1748117462401,-139411.7,0.00019424,2]
[362243933,1748117462410,-263.93542,0.00019424,2]
[362243934,1748117462420,-5710.99,0.00019424,2]
[362243935,1748117462429,-151.0,0.00019424,2]
[362243936,1748117462438,-2122.1,0.00019424,2]
[362243937,1748117462447,-506.07,0.00019424,2]
[362243938,1748117462456,-599.9,0.00019424,2]
[362243939,1748117462466,-2039.49,0.00019424,2]
[362243940,1748117462475,-420.0,0.00019424,2]
[362243941,1748117462485,-151.0,0.00019424,2]
[362243942,1748117462494,-282.262676,0.00019424,2]
[362243943,1748117462503,-1336.66,0.00019424,2]
[362243944,1748117462512,-420.0,0.00019424,2]
[362243945,1748117462521,-282.262676,0.00019424,2]
[362243946,1748117462530,-151.0,0.00019424,2]
[362243947,1748117462539,-2331.45,0.00019424,2]
[362243948,1748117462549,-420.0,0.00019424,2]
[362243949,1748117462558,-381.29962683,0.00019424,2]
[362243950,1748117462568,-2331.48,0.00019424,2]
[362243951,1748117462577,-420.0,0.00019424,2]
[362243952,1748117462586,-420.0,0.00019424,2]
[362243953,1748117462596,-1010.17,0.00019424,2]
[362243954,1748117462605,-476.38,0.00019424,2]
[362243955,1748117462614,-420.0,0.00019424,2]
[362243956,1748117462624,-420.0,0.00019424,2]
[362243957,1748117462633,-2012.08,0.00019424,2]
[362243958,1748117462642,-420.0,0.00019424,2]
[362243959,1748117462652,-6143.93,0.00019424,2]
[362243960,1748117462661,-420.0,0.00019424,2]
[362243961,1748117462670,-4396.86,0.00019424,2]
[362243962,1748117462679,-420.0,0.00019424,2]
[362243963,1748117462689,-4230.85,0.00019424,2]
[362243964,1748117462698,-7374.08,0.00019424,2]
[362243965,1748117462707,-443.68,0.00019424,2]
[362243966,1748117462716,-420.0,0.00019424,2]
[362243967,1748117462725,-420.0,0.00019424,2]
[362243968,1748117462735,-1352.04,0.00019424,2]
[362243969,1748117462746,-382.44873518,0.00019424,2]
[362243970,1748117462756,-420.0,0.00019424,2]
[362243971,1748117462766,-420.0,0.00019424,2]
[362243972,1748117462775,-420.0,0.00019424,2]
[362243973,1748117462784,-713.21,0.00019424,2]
[362243974,1748117462793,-2498.63,0.00019424,2]
[362243975,1748117462803,-665.35,0.00019424,2]
[362243976,1748117462813,-420.0,0.00019424,2]
[362243977,1748117462822,-807.50637,0.00019424,2]
[362243978,1748117462831,-3833.23,0.00019424,2]
[362243979,1748117462840,-807.50637,0.00019424,2]
[362243980,1748117462849,-151.0,0.00019424,2]
[362243981,1748117462862,-420.0,0.00019424,2]
[362243982,1748117462871,-508.45,0.00019424,2]
[362243983,1748117462880,-5208.31,0.00019424,2]
[362243984,1748117462889,-420.0,0.00019424,2]
[362243985,1748117462899,-420.0,0.00019424,2]
[362243986,1748117462908,-151.0,0.00019452,2]
[362243987,1748117462918,-152.971412,0.00019452,2]
[362243988,1748117462927,-152.464525,0.00019452,2]
[362243989,1748117462939,-151.0,0.00019452,2]
[362243990,1748117462951,-1385.27,0.00019452,2]
[362243991,1748117462962,-908.32,0.00019452,2]
[362243992,1748117462971,-985.75,0.00019452,2]
[362243993,1748117462981,-618.23,0.00019452,2]
[362243994,1748117462991,-529.36209577,0.00019452,2]
[362243995,1748117463001,-849.67,0.00019452,2]
[362243996,1748117463010,-420.0,0.00019452,2]
[362243997,1748117463021,-420.0,0.00019452,2]
[362243998,1748117463031,-1157.53,0.00019452,2]
[362243999,1748117463040,-886.04,0.00019452,2]
[362244000,1748117463051,-420.0,0.00019452,2]
[362244001,1748117463060,-420.0,0.00019452,2]
[362244002,1748117463071,-420.0,0.00019452,2]
[362244003,1748117463080,-943.28,0.00019452,2]
[362244004,1748117463090,-420.0,0.00019452,2]
[362244005,1748117463100,-5653.33,0.00019452,2]
[362244006,1748117463111,-529.4,0.00019452,2]
[362244007,1748117463120,-3961.59,0.00019452,2]
[362244008,1748117463130,-1625.46,0.00019452,2]
[362244009,1748117463139,-2212.53,0.00019452,2]
[362244010,1748117463149,-11025.39,0.00019452,2]
[362244011,1748117463158,-1103.27,0.00019452,2]
[362244012,1748117463168,-915.43,0.00019452,2]
[362244013,1748117463178,-458.48,0.00019452,2]
[362244014,1748117463188,-1622.93,0.00019452,2]
[362244015,1748117463198,-139411.7,0.00019452,2]
[362244016,1748117463209,-5710.99,0.00019452,2]
[362244017,1748117463218,-2122.1,0.00019452,2]
[362244018,1748117463228,-506.07,0.00019452,2]
[362244019,1748117463237,-599.9,0.00019452,2]
[362244020,1748117463246,-2039.49,0.00019452,2]
[362244021,1748117463257,-420.0,0.00019452,2]
[362244022,1748117463267,-1336.66,0.00019452,2]
[362244023,1748117463276,-420.0,0.00019452,2]
[362244024,1748117463286,-2331.45,0.00019452,2]
[362244025,1748117463296,-420.0,0.00019452,2]
[362244026,1748117463305,-2331.48,0.00019452,2]
[362244027,1748117463315,-420.0,0.00019452,2]
[362244028,1748117463325,-420.0,0.00019452,2]
[362244029,1748117463335,-1010.17,0.00019452,2]
[362244030,1748117463345,-476.38,0.00019452,2]
[362244031,1748117463358,-387.9095761,0.00019452,2]
[362244032,1748117463368,-411.61406058,0.00019452,2]
[362244033,1748117463378,-2012.08,0.00019452,2]
[362244034,1748117463388,-429.47474045,0.00019452,2]
[362244035,1748117463398,-6143.93,0.00019452,2]
[362244036,1748117463408,-420.0,0.00019452,2]
[362244037,1748117463418,-4396.86,0.00019452,2]
[362244038,1748117463428,-151.0,0.00019452,2]
[362244039,1748117463437,-420.0,0.00019452,2]
[362244040,1748117463448,-4230.85,0.00019452,2]
[362244041,1748117463458,-7374.08,0.00019452,2]
[362244042,1748117463468,-443.68,0.00019452,2]
[362244043,1748117463478,-420.0,0.00019452,2]
[362244044,1748117463488,-151.0,0.00019452,2]
[362244045,1748117463498,-420.0,0.00019452,2]
[362244046,1748117463507,-151.0,0.00019452,2]
[362244047,1748117463517,-1352.04,0.00019452,2]
[362244048,1748117463527,-420.0,0.00019452,2]
[362244049,1748117463537,-157.892716,0.00019452,2]
[362244050,1748117463548,-458.55,0.00019452,2]
[362244051,1748117463558,-420.0,0.00019452,2]
[362244052,1748117463568,-151.0,0.00019452,2]
[362244053,1748117463579,-215.105622,0.00019452,2]
[362244054,1748117463588,-713.21,0.00019452,2]
[362244055,1748117463599,-2498.63,0.00019452,2]
[362244056,1748117463609,-215.105622,0.00019452,2]
[362244057,1748117463619,-665.35,0.00019452,2]
[362244058,1748117463629,-310.75591176,0.00019452,2]
[362244059,1748117463639,-3833.23,0.00019452,2]
[362244060,1748117463648,-420.0,0.00019452,2]
[362244061,1748117463658,-508.45,0.00019452,2]
[362244062,1748117463668,-5208.31,0.00019452,2]
[362244063,1748117463679,-420.0,0.00019452,2]
[362244064,1748117463690,-402.43891268,0.00019461,2]
[362244065,1748117463700,-206.11462213,0.00019472,2]
[362244066,1748117463710,-152.464525,0.00019479,2]
[362244067,1748117463720,-1385.27,0.00019479,2]
[362244068,1748117463730,-908.32,0.00019479,2]
[362244069,1748117463740,-985.75,0.00019479,2]
[362244070,1748117463750,-618.23,0.00019479,2]
[362244071,1748117463760,-849.67,0.00019479,2]
[362244072,1748117463770,-420.0,0.00019479,2]
[362244073,1748117463780,-420.0,0.00019479,2]
[362244074,1748117463790,-1157.53,0.00019479,2]
[362244075,1748117463802,-886.04,0.00019479,2]
[362244076,1748117463812,-151.0,0.00019479,2]
[362244077,1748117463822,-151.0,0.00019479,2]
[362244078,1748117463833,-420.0,0.00019479,2]
[362244079,1748117463843,-420.0,0.00019479,2]
[362244080,1748117463853,-151.0,0.00019479,2]
[362244081,1748117463868,-151.0,0.00019479,2]
[362244082,1748117463878,-151.0,0.00019479,2]
[362244083,1748117463887,-420.0,0.00019479,2]
[362244084,1748117463898,-151.0,0.00019479,2]
[362244085,1748117463908,-943.28,0.00019479,2]
[362244086,1748117463918,-420.0,0.00019479,2]
[362244087,1748117463928,-5653.33,0.00019479,2]
[362244088,1748117463939,-529.4,0.00019479,2]
[362244089,1748117463950,-3961.59,0.00019479,2]
[362244090,1748117463960,-1625.46,0.00019479,2]
[362244091,1748117463970,-2212.53,0.00019479,2]
[362244092,1748117463980,-11025.39,0.00019479,2]
[362244093,1748117463990,-1103.27,0.00019479,2]
[362244094,1748117464000,-915.43,0.00019479,2]
[362244095,1748117464010,-458.48,0.00019479,2]
[362244096,1748117464021,-1622.93,0.00019479,2]
[362244097,1748117464031,-139411.7,0.00019479,2]
[362244098,1748117464041,-5710.99,0.00019479,2]
[362244099,1748117464051,-2122.1,0.00019479,2]
[362244100,1748117464061,-506.07,0.00019479,2]
[362244101,1748117464071,-599.9,0.00019479,2]
[362244102,1748117464081,-151.0,0.00019479,2]
[362244103,1748117464091,-2039.49,0.00019479,2]
[362244104,1748117464102,-420.0,0.00019479,2]
[362244105,1748117464112,-1336.66,0.00019479,2]
[362244106,1748117464122,-351.2120145,0.00019479,2]
[362244107,1748117464132,-2331.45,0.00019479,2]
[362244108,1748117464142,-420.0,0.00019479,2]
[362244109,1748117464151,-2331.48,0.00019479,2]
[362244110,1748117464161,-420.0,0.00019479,2]
[362244111,1748117464171,-420.0,0.00019479,2]
[362244112,1748117464182,-1010.17,0.00019479,2]
[362244113,1748117464192,-476.38,0.00019479,2]
[362244114,1748117464202,-2012.08,0.00019479,2]
[362244115,1748117464212,-6143.93,0.00019479,2]
[362244116,1748117464222,-420.0,0.00019479,2]
[362244117,1748117464232,-4396.86,0.00019479,2]
[362244118,1748117464242,-151.0,0.00019479,2]
[362244119,1748117464252,-420.0,0.00019479,2]
[362244120,1748117464262,-4230.85,0.00019479,2]
[362244121,1748117464272,-7374.08,0.00019479,2]
[362244122,1748117464282,-443.68,0.00019479,2]
[362244123,1748117464292,-420.0,0.00019479,2]
[362244124,1748117464302,-272.86,0.00019479,2]
[362244125,1748117464312,-1352.04,0.00019479,2]
[362244126,1748117464322,-420.0,0.00019479,2]
[362244127,1748117464332,-420.0,0.00019479,2]
[362244128,1748117464342,-713.21,0.00019479,2]
[362244129,1748117464351,-2498.63,0.00019479,2]
[362244130,1748117464361,-665.35,0.00019479,2]
[362244131,1748117464371,-3833.23,0.00019479,2]
[362244132,1748117464381,-420.0,0.00019479,2]
[362244133,1748117464391,-508.45,0.00019479,2]
[362244134,1748117464401,-5208.31,0.00019479,2]
[362244135,1748117464412,-420.0,0.00019479,2]
[362244136,1748117464421,-767.64791238,0.00019485,2]
[362244137,1748117464432,-510.7439,0.00019491,2]
[362244138,1748117464443,-152.464525,0.00019506,2]
[362244139,1748117464453,-152.925138,0.00019506,2]
[362244140,1748117464464,-1385.27,0.00019506,2]
[362244141,1748117464474,-152.988062,0.00019506,2]
[362244142,1748117464484,-151.0,0.00019506,2]
[362244143,1748117464494,-908.32,0.00019506,2]
[362244144,1748117464503,-985.75,0.00019506,2]
[362244145,1748117464514,-618.23,0.00019506,2]
[362244146,1748117464523,-849.67,0.00019506,2]
[362244147,1748117464533,-420.0,0.00019506,2]
[362244148,1748117464544,-151.0,0.00019506,2]
[362244149,1748117464554,-420.0,0.00019506,2]
[362244150,1748117464563,-151.0,0.00019506,2]
[362244151,1748117464573,-1157.53,0.00019506,2]
[362244152,1748117464583,-886.04,0.00019506,2]
[362244153,1748117464593,-420.0,0.00019506,2]
[362244154,1748117464603,-420.0,0.00019506,2]
[362244155,1748117464612,-420.0,0.00019506,2]
[362244156,1748117464621,-943.28,0.00019506,2]
[362244157,1748117464631,-317.619829,0.00019506,2]
[362244158,1748117464641,-5653.33,0.00019506,2]
[362244159,1748117464652,-529.4,0.00019506,2]
[362244160,1748117464662,-3961.59,0.00019506,2]
[362244161,1748117464672,-1625.46,0.00019506,2]
[362244162,1748117464682,-151.0,0.00019506,2]
[362244163,1748117464692,-2212.53,0.00019506,2]
[362244164,1748117464702,-11025.39,0.00019506,2]
[362244165,1748117464712,-151.0,0.00019506,2]
[362244166,1748117464722,-151.0,0.00019506,2]
[362244167,1748117464732,-497.422868,0.00019506,2]
[362244168,1748117464742,-497.422868,0.00019506,2]
[362244169,1748117464752,-1103.27,0.00019506,2]
[362244170,1748117464762,-915.43,0.00019506,2]
[362244171,1748117464772,-458.48,0.00019506,2]
[362244172,1748117464781,-1622.93,0.00019506,2]
[362244173,1748117464791,-263.93542,0.00019506,2]
[362244174,1748117464801,-151.0,0.00019506,2]
[362244175,1748117464812,-139411.7,0.00019506,2]
[362244176,1748117464821,-263.93542,0.00019506,2]
[362244177,1748117464831,-5710.99,0.00019506,2]
[362244178,1748117464841,-151.0,0.00019506,2]
[362244179,1748117464851,-2122.1,0.00019506,2]
[362244180,1748117464865,-506.07,0.00019506,2]